[Event "11th LCC Super Blitz 2019"]
[Site "London"]
[Date "2019.12.08"]
[Round "1.11"]
[White "Bird, Joel"]
[Black "Essis, Essoh Jean Mathieu C"]
[Result "1-0"]
[ECO "C74"]
[WhiteElo "2009"]
[BlackElo "1438"]
[Annotator "NA"]
[PlyCount "81"]
[EventDate "2019.12.08"]
[EventType "swiss"]
[EventCountry "ENG"]
[SourceTitle "playchess.com"]
[Source "ChessBase"]
[SourceQuality "1"]
[TimeControl "180+2"]

1. e4 {[%emt 0:00:00]} e5 {[%emt 0:02:09]} 2. Nf3 {[%emt 0:00:16]} Nc6 {[%emt 0:00:01]} 3. Bb5 {[%emt 0:00:02]} a6 {[%emt 0:00:03]} 4. Ba4 {[%emt 0:00:01]} b5 {[%emt 0:00:01]} 5. Bb3 {[%emt 0:00:02]} d6 {[%emt 0:00:01]} 6. c3 {[%emt 0:00:19]} Bg4 {[%emt 0:00:02]} 7. O-O {[%emt 0:00:05]} Na5 {[%emt 0:00:02]} 8. Bc2 {[%emt 0:00:12]} Be7 {[%emt 0:00:03]} 9. h3 {[%emt 0:00:09]} Bd7 {[%emt 0:00:02]} 10. d4 {[%emt 0:00:08]} exd4 {[%emt 0:00:07]} 11. cxd4 {[%emt 0:00:07]} c6 {[%emt 0:00:01]} 12. Re1 {[%emt 0:00:08]} Nc4 {[%emt 0:00:01]} 13. b3 {[%emt 0:00:06]} Nb6 {[%emt 0:00:03]} 14. Bf4 {[%emt 0:00:09]} Nf6 {[%emt 0:00:04]} 15. Nc3 {[%emt 0:00:07]} O-O {[%emt 0:00:03]} 16. a4 {[%emt 0:00:05]} Nh5 {[%emt 0:00:03]} 17. Bh2 {[%emt 0:00:01]} c5 {[%emt 0:00:03]} 18. a5 {[%emt 0:00:17]} b4 {[%emt 0:00:01]} 19. Nb1 {[%emt 0:00:33]} Nc8 {[%emt 0:00:02]} 20. Nbd2 {[%emt 0:00:05]} Re8 {[%emt 0:00:03]} 21. e5 {[%emt 0:00:03]} cxd4 {[%emt 0:00:03]} 22. Nxd4 {[%emt 0:00:07]} d5 23. Qxh5 {[%emt 0:00:05]} Bc5 {[%emt 0:00:09]} 24. Qxh7+ {[%emt 0:00:06]} Kf8 {[%emt 0:00:01]} 25. Qh8+ {[%emt 0:00:16]} Ke7 {[%emt 0:00:02]} 26. Qh4+ {[%emt 0:00:01]} f6 {[%emt 0:00:01]} 27. exf6+ {[%emt 0:00:04]} Kf7 {[%emt 0:00:05]} 28. Qh5+ {[%emt 0:00:00]} Kg8 {[%emt 0:00:05]} 29. f7+ {[%emt 0:00:00]} Kf8 {[%emt 0:00:02]} 30. fxe8=Q+ {[%emt 0:00:00]} Bxe8 {[%emt 0:00:03]} 31. Qf3+ {[%emt 0:00:00]} Bf7 {[%emt 0:00:03]} 32. Ne6+ {[%emt 0:00:00]} Kg8 {[%emt 0:00:03]} 33. Nxd8 {[%emt 0:00:00]} Nd6 {[%emt 0:00:03]} 34. Nxf7 {[%emt 0:00:00]} Nxf7 {[%emt 0:00:02]} 35. Be5 {[%emt 0:00:00]} Re8 {[%emt 0:00:06]} 36. Qg3 {[%emt 0:00:02]} Nxe5 {[%emt 0:00:02]} 37. Rxe5 {[%emt 0:00:02]} Rxe5 {[%emt 0:00:01]} 38. Qxe5 {[%emt 0:00:01]} Bf8 {[%emt 0:00:04]} 39. Qe6+ {[%emt 0:00:02]} Kh8 {[%emt 0:00:02]} 40. Bg6 {[%emt 0:00:12]} Bc5 {[%emt 0:00:02]} 41. Qc8+ {[%emt 0:00:03]} 1-0

[Event "11th LCC Super Blitz 2019"]
[Site "London"]
[Date "2019.12.08"]
[Round "1.12"]
[White "Stamatopoulos, Apostolos"]
[Black "Manmay Chopra"]
[Result "1-0"]
[ECO "D04"]
[WhiteElo "1782"]
[BlackElo "1354"]
[Annotator "NA"]
[PlyCount "103"]
[EventDate "2019.12.08"]
[EventType "swiss"]
[EventCountry "ENG"]
[SourceTitle "playchess.com"]
[Source "ChessBase"]
[SourceQuality "1"]
[TimeControl "180+2"]

1. d4 {[%emt 0:00:00]} Nf6 {[%emt 0:00:00]} 2. Nf3 {[%emt 0:00:00]} d5 {[%emt 0:00:00]} 3. e3 {[%emt 0:00:01]} c5 {[%emt 0:00:01]} 4. b3 {[%emt 0:00:03]} Nc6 {[%emt 0:00:02]} 5. Bd3 {[%emt 0:00:18]} Bg4 {[%emt 0:00:03]} 6. Bb2 {[%emt 0:00:11]} e6 {[%emt 0:00:02]} 7. O-O {[%emt 0:00:12]} cxd4 {[%emt 0:00:06]} 8. exd4 {[%emt 0:00:06]} Bd6 {[%emt 0:00:00]} 9. Nbd2 {[%emt 0:00:23]} Qc7 {[%emt 0:00:08]} 10. h3 {[%emt 0:00:02]} Bh5 {[%emt 0:00:01]} 11. Qe1 {[%emt 0:00:23]} O-O {[%emt 0:00:08]} 12. Ne5 {[%emt 0:00:02]} Bxe5 {[%emt 0:00:06]} 13. dxe5 {[%emt 0:00:02]} Nd7 {[%emt 0:00:01]} 14. f4 {[%emt 0:00:15]} Bg6 {[%emt 0:00:02]} 15. Nf3 {[%emt 0:00:10]} Qb6+ {[%emt 0:00:09]} 16. Kh1 {[%emt 0:00:02]} Bxd3 {[%emt 0:00:03]} 17. cxd3 {[%emt 0:00:01]} Nc5 {[%emt 0:00:04]} 18. Qe2 {[%emt 0:00:37]} Qa6 {[%emt 0:00:22]} 19. Rfd1 {[%emt 0:00:11]} Nb4 {[%emt 0:00:04]} 20. Ne1 {[%emt 0:00:09]} Ne4 {[%emt 0:00:05]} 21. Qf3 {[%emt 0:00:08]} Nc5 {[%emt 0:00:08]} 22. a3 {[%emt 0:00:07]} Nc6 {[%emt 0:00:02]} 23. b4 {[%emt 0:00:11]} Na4 {[%emt 0:00:01]} 24. Qe2 {[%emt 0:00:04]} Qb6 {[%emt 0:00:21]} 25. Nf3 {[%emt 0:00:03]} Rac8 {[%emt 0:00:12]} 26. Qc2 {[%emt 0:00:03]} Nxb2 {[%emt 0:00:04]} 27. Qxb2 {[%emt 0:00:00]} Ne7 {[%emt 0:00:07]} 28. Rac1 {[%emt 0:00:00]} Rxc1 {[%emt 0:00:12]} 29. Rxc1 {[%emt 0:00:01]} Rc8 {[%emt 0:00:02]} 30. Rxc8+ {[%emt 0:00:05]} Nxc8 {[%emt 0:00:01]} 31. Qc3 {[%emt 0:00:00]} Qc6 {[%emt 0:00:06]} 32. Qxc6 {[%emt 0:00:02]} bxc6 {[%emt 0:00:02]} 33. Nd4 {[%emt 0:00:01]} Ne7 {[%emt 0:00:02]} 34. b5 {[%emt 0:00:01]} cxb5 {[%emt 0:00:08]} 35. Nxb5 {[%emt 0:00:01]} Nc6 {[%emt 0:00:04]} 36. Kg1 {[%emt 0:00:02]} Kf8 {[%emt 0:00:01]} 37. Kf2 {[%emt 0:00:00]} Ke7 {[%emt 0:00:00]} 38. Ke3 {[%emt 0:00:02]} a6 {[%emt 0:00:01]} 39. Nc3 {[%emt 0:00:04]} Kd7 {[%emt 0:00:01]} 40. Na4 {[%emt 0:00:01]} Nb8 {[%emt 0:00:13]} 41. Nc5+ {[%emt 0:00:03]} Kc6 {[%emt 0:00:01]} 42. d4 {[%emt 0:00:02]} Kb5 {[%emt 0:00:10]} 43. Kd3 {[%emt 0:00:02]} a5 {[%emt 0:00:02]} 44. Kc3 {[%emt 0:00:02]} a4 {[%emt 0:00:02]} 45. g4 {[%emt 0:00:03]} g6 {[%emt 0:00:11]} 46. Nb7 {[%emt 0:00:01]} Nd7 {[%emt 0:00:11]} 47. Nd6+ {[%emt 0:00:01]} Kc6 {[%emt 0:00:01]} 48. Nxf7 {[%emt 0:00:01]} Nb6 {[%emt 0:00:02]} 49. Ng5 {[%emt 0:00:02]} Nc4 {[%emt 0:00:00]} 50. Kb4 {[%emt 0:00:02]} Kd7 {[%emt 0:00:06]} 51. Kxa4 {[%emt 0:00:04]} Nd2 {[%emt 0:00:11]} 52. Nxh7 {[%emt 0:00:01]} 1-0

[Event "11th LCC Super Blitz 2019"]
[Site "London"]
[Date "2019.12.08"]
[Round "1.12"]
[White "Muhunthan, Charukgan"]
[Black "Kennedy, Craig"]
[Result "0-1"]
[ECO "B06"]
[WhiteElo "1401"]
[BlackElo "1899"]
[Annotator "NA"]
[PlyCount "70"]
[EventDate "2019.12.08"]
[EventType "swiss"]
[EventCountry "ENG"]
[SourceTitle "playchess.com"]
[Source "ChessBase"]
[SourceQuality "1"]
[TimeControl "180+2"]

1. e4 {[%emt 0:00:00]} g6 {[%emt 0:00:00]} 2. d4 {[%emt 0:00:03]} Bg7 {[%emt 0:00:00]} 3. Be3 {[%emt 0:00:01]} d6 {[%emt 0:00:03]} 4. f3 {[%emt 0:00:02]} a6 {[%emt 0:00:05]} 5. Nc3 {[%emt 0:00:03]} b5 {[%emt 0:00:02]} 6. a3 {[%emt 0:00:01]} Nd7 {[%emt 0:00:02]} 7. Qd2 {[%emt 0:00:05]} Bb7 {[%emt 0:00:01]} 8. Be2 {[%emt 0:00:02]} Rc8 {[%emt 0:00:02]} 9. O-O-O {[%emt 0:00:06]} c5 {[%emt 0:00:02]} 10. d5 {[%emt 0:00:09]} Qa5 {[%emt 0:00:08]} 11. Kb1 {[%emt 0:00:04]} b4 {[%emt 0:00:02]} 12. axb4 {[%emt 0:00:04]} Qxb4 {[%emt 0:00:17]} 13. Re1 {[%emt 0:00:38]} Nb6 {[%emt 0:00:07]} 14. Nd1 {[%emt 0:00:03]} Qa4 {[%emt 0:00:07]} 15. Nc3 {[%emt 0:00:08]} Qa5 {[%emt 0:00:14]} 16. Nd1 {[%emt 0:00:01]} Qa4 {[%emt 0:00:15]} 17. Nc3 {[%emt 0:00:01]} Qd7 {[%emt 0:00:02]} 18. h4 {[%emt 0:00:20]} h5 {[%emt 0:00:02]} 19. g4 {[%emt 0:00:07]} Na4 {[%emt 0:00:24]} 20. Nxa4 {[%emt 0:00:12]} Qxa4 {[%emt 0:00:02]} 21. gxh5 {[%emt 0:00:05]} Rxh5 {[%emt 0:00:02]} 22. f4 {[%emt 0:00:01]} Rh8 {[%emt 0:00:04]} 23. Bf3 {[%emt 0:00:12]} Qb5 {[%emt 0:00:18]} 24. c3 {[%emt 0:00:06]} Nf6 {[%emt 0:00:03]} 25. e5 {[%emt 0:00:09]} dxe5 {[%emt 0:00:29]} 26. fxe5 {[%emt 0:00:02]} Nd7 {[%emt 0:00:12]} 27. e6 {[%emt 0:00:16]} Ne5 {[%emt 0:00:07]} 28. exf7+ {[%emt 0:00:13]} Kf8 {[%emt 0:00:01]} 29. Be4 {[%emt 0:00:04]} Nc4 {[%emt 0:00:04]} 30. Qc2 {[%emt 0:00:25]} Na3+ {[%emt 0:00:02]} 31. Ka2 {[%emt 0:00:07]} Nxc2 {[%emt 0:00:03]} 32. Bxc2 {[%emt 0:00:00]} Bxd5+ {[%emt 0:00:04]} 33. Ka1 {[%emt 0:00:07]} Rb8 {[%emt 0:00:03]} 34. Bc1 {[%emt 0:00:03]} Qa5+ {[%emt 0:00:04]} 35. Kb1 {[%emt 0:00:03]} Qa2# {[%emt 0:00:01]} 0-1

[Event "11th LCC Super Blitz 2019"]
[Site "London"]
[Date "2019.12.08"]
[Round "1.13"]
[White "Young, Daniel J"]
[Black "Patel, Zain"]
[Result "1-0"]
[ECO "B96"]
[WhiteElo "1947"]
[BlackElo "1253"]
[Annotator "NA"]
[PlyCount "67"]
[EventDate "2019.12.08"]
[EventType "swiss"]
[EventCountry "ENG"]
[SourceTitle "playchess.com"]
[Source "ChessBase"]
[SourceQuality "1"]
[TimeControl "180+2"]

1. e4 {[%emt 0:00:01]} c5 {[%emt 0:00:00]} 2. Nf3 {[%emt 0:00:01]} d6 {[%emt 0:00:00]} 3. d4 {[%emt 0:00:01]} cxd4 {[%emt 0:00:02]} 4. Nxd4 {[%emt 0:00:01]} Nf6 {[%emt 0:00:01]} 5. Nc3 {[%emt 0:00:01]} a6 {[%emt 0:00:01]} 6. Bg5 {[%emt 0:00:01]} e6 {[%emt 0:00:01]} 7. f4 {[%emt 0:00:01]} b5 {[%emt 0:00:01]} 8. e5 {[%emt 0:00:03]} dxe5 {[%emt 0:00:01]} 9. fxe5 {[%emt 0:00:01]} Qc7 {[%emt 0:00:01]} 10. exf6 {[%emt 0:00:02]} Qe5+ {[%emt 0:00:03]} 11. Be2 {[%emt 0:00:01]} Qxg5 {[%emt 0:00:03]} 12. O-O {[%emt 0:00:08]} Nd7 {[%emt 0:00:02]} 13. Ne4 {[%emt 0:00:18]} Qe3+ {[%emt 0:00:07]} 14. Kh1 {[%emt 0:00:16]} Qxe4 {[%emt 0:00:06]} 15. Bf3 {[%emt 0:00:01]} Qg6 {[%emt 0:00:09]} 16. Bxa8 {[%emt 0:00:07]} Nxf6 {[%emt 0:00:02]} 17. Bc6+ {[%emt 0:00:16]} Bd7 {[%emt 0:00:03]} 18. Bxd7+ {[%emt 0:00:02]} Nxd7 {[%emt 0:00:03]} 19. Qf3 {[%emt 0:00:08]} Bd6 {[%emt 0:00:46]} 20. Qa8+ {[%emt 0:00:13]} Bb8 {[%emt 0:00:02]} 21. Nc6 {[%emt 0:00:24]} h6 {[%emt 0:00:32]} 22. Nxb8 {[%emt 0:00:07]} O-O {[%emt 0:00:04]} 23. Qxa6 {[%emt 0:00:22]} Rxb8 {[%emt 0:00:06]} 24. Qa7 {[%emt 0:00:07]} Rd8 {[%emt 0:00:10]} 25. Rad1 {[%emt 0:00:02]} Qxc2 {[%emt 0:00:35]} 26. Rxd7 {[%emt 0:00:07]} Rxd7 {[%emt 0:00:09]} 27. Qxd7 {[%emt 0:00:02]} Qxb2 {[%emt 0:00:06]} 28. Qxf7+ {[%emt 0:00:03]} Kh8 {[%emt 0:00:01]} 29. Qg6 {[%emt 0:00:11]} Qa3 {[%emt 0:00:10]} 30. h3 {[%emt 0:00:11]} Qe7 {[%emt 0:00:09]} 31. Rf7 {[%emt 0:00:04]} Qf6 {[%emt 0:00:07]} 32. Rxf6 {[%emt 0:00:04]} gxf6 {[%emt 0:00:02]} 33. Qxf6+ {[%emt 0:00:02]} Kg8 {[%emt 0:00:01]} 34. Qxe6+ {[%emt 0:00:02]} 1-0

[Event "11th LCC Super Blitz 2019"]
[Site "London"]
[Date "2019.12.08"]
[Round "1.13"]
[White "Nunn, Petra"]
[Black "Pham, Catherine"]
[Result "1-0"]
[ECO "B46"]
[WhiteElo "1908"]
[BlackElo "1280"]
[Annotator "NA"]
[PlyCount "121"]
[EventDate "2019.12.08"]
[EventType "swiss"]
[EventCountry "ENG"]
[SourceTitle "playchess.com"]
[Source "ChessBase"]
[SourceQuality "1"]
[TimeControl "180+2"]

1. e4 {[%emt 0:00:00]} c5 {[%emt 0:00:00]} 2. Nf3 {[%emt 0:00:02]} e6 {[%emt 0:00:00]} 3. d4 {[%emt 0:00:01]} cxd4 {[%emt 0:00:02]} 4. Nxd4 {[%emt 0:00:01]} Nc6 {[%emt 0:00:01]} 5. Nc3 {[%emt 0:00:10]} a6 {[%emt 0:00:01]} 6. g3 {[%emt 0:00:07]} Nf6 {[%emt 0:00:04]} 7. Bg2 {[%emt 0:00:01]} Bb4 {[%emt 0:00:23]} 8. O-O {[%emt 0:00:22]} O-O {[%emt 0:00:03]} 9. Nce2 {[%emt 0:00:46]} d5 {[%emt 0:00:48]} 10. exd5 {[%emt 0:00:30]} Nxd5 {[%emt 0:00:10]} 11. Nxc6 {[%emt 0:00:04]} bxc6 {[%emt 0:00:06]} 12. c3 {[%emt 0:00:02]} Be7 {[%emt 0:00:15]} 13. Re1 {[%emt 0:00:04]} Qc7 {[%emt 0:00:04]} 14. Nf4 {[%emt 0:00:10]} a5 {[%emt 0:00:11]} 15. c4 {[%emt 0:00:10]} Nxf4 {[%emt 0:00:14]} 16. Bxf4 {[%emt 0:00:02]} Qb6 {[%emt 0:00:01]} 17. Qc2 {[%emt 0:00:03]} Ba6 {[%emt 0:00:05]} 18. b3 {[%emt 0:00:03]} Bf6 {[%emt 0:00:07]} 19. Be5 {[%emt 0:00:08]} Bxe5 {[%emt 0:00:08]} 20. Rxe5 {[%emt 0:00:01]} Rfd8 {[%emt 0:00:03]} 21. Ree1 {[%emt 0:00:17]} Rd7 {[%emt 0:00:06]} 22. Red1 {[%emt 0:00:01]} Rad8 {[%emt 0:00:01]} 23. Rxd7 {[%emt 0:00:01]} Rxd7 {[%emt 0:00:01]} 24. Rd1 {[%emt 0:00:01]} Qc7 {[%emt 0:00:05]} 25. h4 {[%emt 0:00:09]} c5 {[%emt 0:00:03]} 26. Rd3 {[%emt 0:00:05]} Rxd3 {[%emt 0:00:04]} 27. Qxd3 {[%emt 0:00:00]} h6 {[%emt 0:00:05]} 28. Kh2 {[%emt 0:00:07]} Bb7 {[%emt 0:00:10]} 29. Qc3 {[%emt 0:00:03]} Bxg2 {[%emt 0:00:05]} 30. Kxg2 {[%emt 0:00:00]} Qc6+ {[%emt 0:00:01]} 31. Kh2 {[%emt 0:00:02]} Qd6 {[%emt 0:00:04]} 32. Qxa5 {[%emt 0:00:03]} Kh7 {[%emt 0:00:04]} 33. Qc3 {[%emt 0:00:01]} f6 {[%emt 0:00:06]} 34. Qe3 {[%emt 0:00:03]} e5 {[%emt 0:00:02]} 35. Qe4+ {[%emt 0:00:01]} Kg8 {[%emt 0:00:02]} 36. Kg2 {[%emt 0:00:02]} Kf7 {[%emt 0:00:03]} 37. h5 {[%emt 0:00:01]} Kg8 {[%emt 0:00:02]} 38. Qd5+ {[%emt 0:00:02]} Qxd5+ {[%emt 0:00:04]} 39. cxd5 {[%emt 0:00:01]} Kf7 {[%emt 0:00:02]} 40. Kf3 {[%emt 0:00:01]} Ke7 {[%emt 0:00:01]} 41. Ke4 {[%emt 0:00:02]} Kd6 {[%emt 0:00:01]} 42. g4 {[%emt 0:00:01]} Kd7 {[%emt 0:00:04]} 43. a4 {[%emt 0:00:01]} Kd6 {[%emt 0:00:02]} 44. a5 {[%emt 0:00:02]} Kc7 {[%emt 0:00:01]} 45. a6 {[%emt 0:00:06]} Kb6 {[%emt 0:00:01]} 46. d6 {[%emt 0:00:02]} Kxa6 {[%emt 0:00:04]} 47. d7 {[%emt 0:00:01]} Kb5 {[%emt 0:00:03]} 48. d8=Q {[%emt 0:00:03]} Kb4 {[%emt 0:00:01]} 49. Kd5 {[%emt 0:00:03]} Kxb3 {[%emt 0:00:02]} 50. Kxc5 {[%emt 0:00:01]} Kc3 {[%emt 0:00:01]} 51. Qa5+ {[%emt 0:00:03]} Kd3 {[%emt 0:00:01]} 52. Qa3+ {[%emt 0:00:04]} Ke2 {[%emt 0:00:03]} 53. Qe3+ {[%emt 0:00:02]} Kd1 {[%emt 0:00:02]} 54. f4 {[%emt 0:00:02]} Kc2 {[%emt 0:00:02]} 55. fxe5 {[%emt 0:00:03]} Kd1 {[%emt 0:00:00]} 56. e6 {[%emt 0:00:02]} Kc2 {[%emt 0:00:03]} 57. Kc4 {[%emt 0:00:02]} Kb2 {[%emt 0:00:01]} 58. Qc3+ {[%emt 0:00:02]} Ka2 {[%emt 0:00:02]} 59. Qb4 {[%emt 0:00:01]} Ka1 {[%emt 0:00:02]} 60. Kc3 {[%emt 0:00:01]} Ka2 {[%emt 0:00:01]} 61. Qb2# {[%emt 0:00:01]} 1-0

[Event "11th LCC Super Blitz 2019"]
[Site "London"]
[Date "2019.12.08"]
[Round "1.13"]
[White "Ball, Charlie J"]
[Black "Tanmay Chopra"]
[Result "0-1"]
[ECO "D00"]
[WhiteElo "1249"]
[BlackElo "2100"]
[Annotator "NA"]
[PlyCount "66"]
[EventDate "2019.12.08"]
[EventType "swiss"]
[EventCountry "ENG"]
[SourceTitle "playchess.com"]
[Source "ChessBase"]
[SourceQuality "1"]
[TimeControl "180+2"]

1. d4 {[%emt 0:17:58]} Nf6 2. Bf4 d5 {[%emt 0:00:02]} 3. e3 c5 {[%emt 0:00:01]} 4. c3 {[%emt 0:00:04]} Nc6 5. Bd3 {[%emt 0:00:04]} Qb6 {[%emt 0:00:16]} 6. Qc2 {[%emt 0:00:15]} cxd4 {[%emt 0:00:05]} 7. exd4 {[%emt 0:00:02]} Bg4 {[%emt 0:00:04]} 8. Nf3 {[%emt 0:00:09]} Rc8 {[%emt 0:00:02]} 9. Nbd2 {[%emt 0:00:07]} e6 {[%emt 0:00:14]} 10. h3 {[%emt 0:00:21]} Bh5 11. O-O {[%emt 0:00:18]} Be7 12. Qb3 {[%emt 0:00:12]} Nd7 {[%emt 0:00:34]} 13. Ne5 {[%emt 0:00:23]} Ncxe5 {[%emt 0:00:10]} 14. Bxe5 {[%emt 0:00:04]} f6 {[%emt 0:00:28]} 15. Bh2 {[%emt 0:00:13]} O-O {[%emt 0:00:02]} 16. Qc2 {[%emt 0:00:08]} h6 {[%emt 0:00:09]} 17. g4 {[%emt 0:00:08]} Bf7 {[%emt 0:00:01]} 18. h4 {[%emt 0:00:05]} e5 {[%emt 0:00:02]} 19. dxe5 {[%emt 0:00:09]} Nxe5 {[%emt 0:00:12]} 20. Bf5 {[%emt 0:00:10]} Be6 {[%emt 0:00:02]} 21. Bxe6+ {[%emt 0:00:03]} Qxe6 {[%emt 0:00:01]} 22. Rae1 {[%emt 0:00:09]} Qxg4+ {[%emt 0:00:01]} 23. Kh1 {[%emt 0:00:03]} Qxh4 {[%emt 0:00:02]} 24. Qf5 {[%emt 0:00:20]} Bd6 {[%emt 0:00:22]} 25. Qe6+ {[%emt 0:00:01]} Nf7 {[%emt 0:00:01]} 26. f4 {[%emt 0:00:12]} d4 {[%emt 0:00:02]} 27. cxd4 {[%emt 0:00:02]} Rc2 28. Nf3 {[%emt 0:00:02]} Qh5 {[%emt 0:00:11]} 29. Re3 {[%emt 0:00:07]} Bxf4 {[%emt 0:00:04]} 30. Re4 Rxh2+ {[%emt 0:00:04]} 31. Kg1 {[%emt 0:00:03]} Qg6+ {[%emt 0:00:03]} 32. Ng5 {[%emt 0:00:06]} Qxg5+ {[%emt 0:00:03]} 33. Qg4 {[%emt 0:00:02]} Qxg4# 0-1

[Event "11th LCC Super Blitz 2019"]
[Site "London"]
[Date "2019.12.08"]
[Round "1.14"]
[White "Neo, Jing Yi Mischa"]
[Black "Arapalea, Daniel-Ionel"]
[Result "1-0"]
[ECO "B52"]
[WhiteElo "1240"]
[BlackElo "1840"]
[Annotator "NA"]
[PlyCount "62"]
[EventDate "2019.12.08"]
[EventType "swiss"]
[EventCountry "ENG"]
[SourceTitle "playchess.com"]
[Source "ChessBase"]
[SourceQuality "1"]
[TimeControl "180+2"]

1. e4 {[%emt 0:00:00]} c5 {[%emt 0:00:00]} 2. Nf3 {[%emt 0:00:00]} d6 {[%emt 0:00:02]} 3. Bb5+ {[%emt 0:00:06]} Bd7 {[%emt 0:00:01]} 4. Bxd7+ {[%emt 0:00:02]} Nxd7 {[%emt 0:00:01]} 5. O-O {[%emt 0:00:06]} e5 {[%emt 0:00:04]} 6. Nc3 {[%emt 0:00:16]} h6 {[%emt 0:00:04]} 7. d4 {[%emt 0:00:08]} cxd4 {[%emt 0:00:03]} 8. Nd5 {[%emt 0:00:12]} Ngf6 {[%emt 0:00:02]} 9. Re1 {[%emt 0:00:11]} Nb6 {[%emt 0:00:07]} 10. c4 {[%emt 0:00:11]} Nfxd5 {[%emt 0:00:16]} 11. cxd5 {[%emt 0:00:06]} Be7 {[%emt 0:00:01]} 12. Bd2 {[%emt 0:00:12]} O-O {[%emt 0:00:03]} 13. Rc1 {[%emt 0:00:03]} Rc8 {[%emt 0:00:03]} 14. Qb3 {[%emt 0:00:20]} Qd7 {[%emt 0:00:16]} 15. Ba5 {[%emt 0:00:30]} Na4 {[%emt 0:00:12]} 16. Nd2 {[%emt 0:00:23]} Nc5 {[%emt 0:00:06]} 17. Qb4 {[%emt 0:00:09]} b6 {[%emt 0:00:05]} 18. Bxb6 {[%emt 0:00:25]} axb6 {[%emt 0:00:02]} 19. Qb3 {[%emt 0:00:10]} Nxb3 {[%emt 0:00:02]} 20. Nxb3 {[%emt 0:00:03]} Rxc1 {[%emt 0:00:03]} 21. Rxc1 {[%emt 0:00:01]} Rc8 {[%emt 0:00:01]} 22. Rxc8+ {[%emt 0:00:05]} Qxc8 {[%emt 0:00:02]} 23. h3 {[%emt 0:00:02]} Qc2 {[%emt 0:00:03]} 24. Na1 {[%emt 0:00:02]} Qb1+ {[%emt 0:00:02]} 25. Kh2 {[%emt 0:00:01]} Qxa1 {[%emt 0:00:02]} 26. g3 {[%emt 0:00:01]} Qxb2 {[%emt 0:00:03]} 27. h4 {[%emt 0:00:01]} d3 {[%emt 0:00:03]} 28. g4 {[%emt 0:00:02]} d2 {[%emt 0:00:02]} 29. h5 {[%emt 0:00:02]} d1=Q {[%emt 0:00:05]} 30. Kh3 {[%emt 0:00:02]} Qxf2 {[%emt 0:00:04]} 31. g5 {[%emt 0:00:03]} Qdf3# {[%emt 0:00:03]} 1-0

[Event "11th LCC Super Blitz 2019"]
[Site "London"]
[Date "2019.12.08"]
[Round "1.15"]
[White "Joslin, Tim"]
[Black "Thatte, Nandinee"]
[Result "1-0"]
[ECO "B01"]
[WhiteElo "1822"]
[BlackElo "1270"]
[Annotator "NA"]
[PlyCount "59"]
[EventDate "2019.12.08"]
[EventType "swiss"]
[EventCountry "ENG"]
[SourceTitle "playchess.com"]
[Source "ChessBase"]
[SourceQuality "1"]
[TimeControl "180+2"]

1. e4 {[%emt 0:59:55]} d5 {[%emt 0:00:01]} 2. exd5 {[%emt 0:00:00]} Qxd5 {[%emt 0:00:00]} 3. Nc3 {[%emt 0:00:00]} Qa5 {[%emt 0:00:01]} 4. Bc4 {[%emt 0:00:00]} Bf5 {[%emt 0:00:06]} 5. Nf3 {[%emt 0:00:00]} e6 {[%emt 0:00:02]} 6. O-O {[%emt 0:00:00]} Nf6 {[%emt 0:00:01]} 7. Re1 {[%emt 0:00:00]} c6 {[%emt 0:00:06]} 8. d3 {[%emt 0:00:00]} Bd6 {[%emt 0:00:08]} 9. a3 {[%emt 0:00:00]} O-O {[%emt 0:00:09]} 10. b4 {[%emt 0:00:00]} Qc7 {[%emt 0:00:02]} 11. h3 {[%emt 0:00:00]} h6 {[%emt 0:00:03]} 12. Nd4 {[%emt 0:00:00]} Bh7 {[%emt 0:00:07]} 13. Ne4 {[%emt 0:00:00]} Nxe4 {[%emt 0:00:12]} 14. Rxe4 {[%emt 0:00:00]} Bxe4 {[%emt 0:00:02]} 15. dxe4 {[%emt 0:00:00]} Re8 {[%emt 0:00:06]} 16. Qg4 {[%emt 0:00:00]} Be5 {[%emt 0:00:06]} 17. c3 {[%emt 0:00:00]} Nd7 {[%emt 0:00:07]} 18. Bxh6 {[%emt 0:00:00]} Bf6 {[%emt 0:00:31]} 19. f4 {[%emt 0:00:00]} e5 {[%emt 0:00:11]} 20. Nf5 {[%emt 0:00:00]} exf4 {[%emt 0:00:31]} 21. Bxg7 {[%emt 0:00:00]} Ne5 {[%emt 0:00:15]} 22. Qxf4 {[%emt 0:00:00]} Bxg7 {[%emt 0:00:04]} 23. Qg3 {[%emt 0:00:00]} Nf3+ {[%emt 0:00:18]} 24. Qxf3 {[%emt 0:00:00]} Qe5 {[%emt 0:00:05]} 25. Rf1 {[%emt 0:00:00]} Rf8 {[%emt 0:00:09]} 26. Qg4 {[%emt 0:00:00]} Qxc3 {[%emt 0:00:09]} 27. Nh6+ {[%emt 0:00:00]} Kh7 {[%emt 0:00:05]} 28. Bxf7 {[%emt 0:00:00]} Bxh6 {[%emt 0:00:09]} 29. Qg6+ {[%emt 0:00:00]} Kh8 {[%emt 0:00:05]} 30. Qxh6# {[%emt 0:00:02]} 1-0

[Event "11th LCC Super Blitz 2019"]
[Site "London"]
[Date "2019.12.08"]
[Round "2.1"]
[White "Jones, Gawain C B"]
[Black "Gudenas, Motiejus"]
[Result "1-0"]
[ECO "D02"]
[WhiteElo "2683"]
[BlackElo "1993"]
[Annotator "ChessBase"]
[PlyCount "78"]
[EventDate "2019.12.08"]
[EventType "swiss"]
[EventCountry "ENG"]
[SourceTitle "playchess.com"]
[Source "ChessBase"]
[SourceQuality "1"]
[TimeControl "180+2"]

1. d4 {[%emt 0:03:02]} Nf6 {[%emt 0:00:00]} 2. Bf4 {[%emt 0:00:00]} c5 {[%emt 0:00:00]} 3. e3 {[%emt 0:00:00]} e6 {[%emt 0:00:06]} 4. Nd2 {[%emt 0:00:00]} d5 {[%emt 0:00:01]} 5. Ngf3 {[%emt 0:00:00]} Bd6 {[%emt 0:00:01]} 6. Ne5 {[%emt 0:00:00]} O-O {[%emt 0:00:21]} 7. dxc5 {[%emt 0:00:00]} Bxc5 {[%emt 0:00:02]} 8. Bd3 {[%emt 0:00:00]} Nc6 {[%emt 0:00:04]} 9. Ndf3 {[%emt 0:00:00]} Bd6 {[%emt 0:00:14]} 10. O-O {[%emt 0:00:00]} Qc7 {[%emt 0:00:01]} 11. Nxc6 {[%emt 0:00:00]} bxc6 {[%emt 0:00:10]} 12. Bxd6 {[%emt 0:00:00]} Qxd6 {[%emt 0:00:02]} 13. Re1 {[%emt 0:00:00]} e5 {[%emt 0:00:11]} 14. e4 {[%emt 0:00:00]} d4 {[%emt 0:00:04]} 15. Nd2 {[%emt 0:00:00]} Bg4 {[%emt 0:00:08]} 16. f3 {[%emt 0:00:00]} Be6 {[%emt 0:00:02]} 17. f4 {[%emt 0:00:00]} Bg4 {[%emt 0:00:08]} 18. Nf3 {[%emt 0:00:00]} Nd7 {[%emt 0:00:22]} 19. f5 {[%emt 0:00:00]} f6 {[%emt 0:00:14]} 20. h3 {[%emt 0:00:00]} Bh5 {[%emt 0:00:03]} 21. g4 {[%emt 0:00:00]} Bf7 {[%emt 0:00:01]} 22. Re2 {[%emt 0:00:00]} c5 {[%emt 0:00:06]} 23. b3 {[%emt 0:00:00]} Rac8 {[%emt 0:00:08]} 24. Nd2 {[%emt 0:00:00]} Nb6 {[%emt 0:00:02]} 25. Nc4 {[%emt 0:00:00]} Nxc4 {[%emt 0:00:02]} 26. Bxc4 {[%emt 0:00:00]} Bxc4 {[%emt 0:00:02]} 27. bxc4 {[%emt 0:00:00]} Rb8 {[%emt 0:00:01]} 28. Qd3 {[%emt 0:00:00]} Rb7 {[%emt 0:00:13]} 29. Rg2 {[%emt 0:00:00]} Rfb8 {[%emt 0:00:01]} 30. Kh2 {[%emt 0:00:00]} Rb2 {[%emt 0:00:29]} 31. h4 {[%emt 0:00:00]} h6 {[%emt 0:00:06]} 32. Qa3 {[%emt 0:00:00]} Qb6 {[%emt 0:00:11]} 33. Qg3 {[%emt 0:00:04]} Qa6 {[%emt 0:00:06]} 34. g5 {[%emt 0:00:02]} fxg5 {[%emt 0:00:04]} 35. hxg5 {[%emt 0:00:01]} hxg5 {[%emt 0:00:07]} 36. Qxg5 {[%emt 0:00:02]} R2b7 {[%emt 0:00:09]} 37. Rag1 {[%emt 0:00:12]} Qxc4 {[%emt 0:00:06]} 38. Qh6 {[%emt 0:00:15]} Qf7 {[%emt 0:00:03]} 39. f6 {[%emt 0:00:01]} Qd7 {[%emt 0:00:10]} 1-0